{"text_format":"3","workbook":"xlsx","n_sheets":1,"sheets":["Clamp order 2019"],"not_rendered":{"defined_names":1},"read":"whole","date_system":"1900"}

{"sheet":"Clamp order 2019","index":0,"n_rows":51,"n_cols":5,"rows_kept":51,"merged":[[43,2,43,4],[45,2,45,4],[50,0,50,4]]}
["Buffalo Grove Clamp Order 2019"]
["Description","Quantity","Unit Of Measure","Price per","Extended Cost"]
[]
["Ford FS1 6\" x 10\" Stainless Steel Repair Clamp",6,"each",null,{"$f":"D4*B4","v":0}]
["Ford FS1 6\" x 10\" Stainless Steel Repair Corp clamp",7,"each",null,{"$f":"D5*B5","v":0}]
["Ford FS1 6\" x 12.5\" Stainless Steel Repair Clamp",7,"each",null,0]
["Ford FS1 6\" x 12.5\" Stainless Steel Repair Corp Clamp",5,"each",null,0]
["Ford FS1 6\" x 15\" Stainless Steel Repair Clamp",6,"each",null,0]
["Ford FS1 6\" x 15\" Stainless Steel Repair Corp clamp",4,"each",null,0]
["Ford FS1 6\" x 20\" Stainless Steel Repair Clamp",6,"each",null,0]
["Ford FS1 6\" x 20\" Stainless Steel Repair Corp clamp",2,"each",null,0]
["Ford FS1 6\" x 24\" Stainless Steel Repair Clamp",2,"each",null,0]
["Ford FS1 6\" x 30\" Stainless Steel Repair Clamp",2,"each",null,0]
["Ford FS1 6\" x 30\" Stainless Steel Repair Corp Clamp",1,"each",null,0]
["Ford FS1 8\" x 10\" Stainless Steel Repair Clamp",3,"each",null,0]
["Ford FS1 8\" x 10\" Stainless Steel Repair Corp clamp",5,"each",null,0]
["Ford FS1 8\" x 12.5\" Stainless Steel Repair Clamp",1,"each",null,0]
["Ford FS1 8\" x 12.5\" Stainless Steel Repair Corp clamp",3,"each",null,0]
["Ford FS1 8\" x 15\" Stainless Steel Repair Clamp",6,"each",null,0]
["Ford FS1 8\" x 15\" Stainless Steel Repair Corp clamp",1,"each",null,0]
["Ford FS1 8\" x 20\" Stainless Steel Repair Clamp",4,"each",null,0]
["Ford FS1 8\" x 24\" Stainless Steel Repair Corp clamp",1,"each",null,0]
["Ford FS1 8\" x 30\" Stainless Steel Repair Clamp",2,"each",null,0]
["Ford FS1 10\" x 12\" Stainless Steel Repair Clamp",2,"each",null,0]
["Ford FS1 10\" x 12\" Stainless Steel Repair Corp clamp",2,"each",null,0]
["Ford FS1 10\" x 15\" Stainless Steel Repair Clamp",2,"each",null,0]
["Ford FS1 10\" x 30\" Stainless Steel Repair Clamp",1,"each",null,0]
["Ford FS1 12\" x 10\"  Stainless Steel Repair Clamp",3,"each",null,0]
["Ford FS1 12\" x 10\"  Stainless Steel Repair Corp clamp",1,"each",null,0]
["Ford FS1 12\" x 12\" Stainless Steel Repair Clamp",3,"each",null,0]
["Ford FS1 12\" x 15\" Stainless Steel Repair Clamp",2,"each",null,0]
["Ford FS1 12\" x 20\"  Stainless Steel Repair Clamp",2,"each",null,0]
["Ford FS1 12\" x 24\" Stainless Steel Repair Clamp",1,"each",null,0]
["Ford FS1 16\" x 16\" Stainless Steel Repair Clamp",2,"each",null,0]
["1\"  K copper 50' roll",1,"each",null,0]
["3/4\" K copper 50' roll",1,"each",null,0]
["6\" hymax coupling (short)",4,"each",null,0]
["8\" hymax coupling (short)",2,"each",null,0]
[]
["Cost to deliver all items to 50 Raupp Blvd, Buffalo Grove IL",1,"each",null,0]
[]
[{"$nulls":3},"Grand Total",{"$f":"SUM(E4:E40)","v":0}]
[]
[]
["Company Name",null,"Phone"]
[]
["Print Name",null,"E-mail"]
[]
["Date"]
[]
["THIS PAGE IS TO BE SUBMITTED ON OR BEFORE WEDNESDAY, JANUARY 30 AT 10:00 AM "]